fUSD/lending_fUSD_20250804
["ID","MTS","AMOUNT","RATE_DAILY","PERIOD"]
[377247446,1754306474890,-253.529281,0.00039999,14]
[377247447,1754306474916,-253.529281,0.00039999,14]
[377247448,1754306474943,-440.12372882,0.00039999,31]
[377247449,1754306474968,-400.11938866,0.00039999,31]
[377247450,1754306474994,-151.7032572,0.00039999,31]
[377247451,1754306475022,-500.0,0.00039999,31]
[377247452,1754306475051,-500.0,0.00039999,31]
[377247453,1754306475079,-500.0,0.00039999,31]
[377247454,1754306475107,-500.0,0.00039999,31]
[377247455,1754306475140,-393.71544436,0.00039999,31]
[377247456,1754306475169,-500.0,0.00039999,31]
[377247457,1754306475199,-50000.0,0.0004,40]
[377247458,1754306475227,-151.0,0.0004,14]
[377247459,1754306475253,-151.0,0.0004,14]
[377247460,1754306475279,-151.0,0.0004,14]
[377247461,1754306475305,-151.0,0.0004,14]
[377247462,1754306475335,-1000.0,0.0004,10]
[377247463,1754306475365,-846.39,0.0004,14]
[377247464,1754306475392,-214.21,0.0004,30]
[377247465,1754306475427,-151.0,0.0004,14]
[377247466,1754306475453,-151.0,0.0004,14]
[377247467,1754306475484,-151.0,0.0004,14]
[377247468,1754306475516,-151.0,0.0004,14]
[377247469,1754306475546,-18824.47,0.000402,14]
[377247470,1754306475583,-292.126564,0.00040273,14]
[377247471,1754306475611,-151.0,0.00040273,14]
[377247472,1754306475636,-249.015511,0.00040273,14]
[377247473,1754306475663,-151.0,0.00040273,14]
[377247474,1754306475691,-153.03176,0.00040273,14]
[377247475,1754306475717,-151.0,0.00040273,14]
[377247476,1754306475749,-151.0,0.00040273,14]
[377247477,1754306475775,-152.457873,0.00040273,14]
[377247478,1754306475803,-151.0,0.00040273,14]
[377247479,1754306475834,-151.0,0.00040273,14]
[377247480,1754306475865,-253.276392,0.00040273,14]
[377247481,1754306475892,-151.0,0.00040273,14]
[377247482,1754306475919,-151.0,0.00040273,14]
[377247483,1754306475947,-151.0,0.00040273,14]
[377247484,1754306475978,-231.830584,0.00040273,14]
[377247485,1754306476009,-156.75828733,0.00040446,14]
[377247486,1754306476034,-2110.0,0.00040465,30]
[377247487,1754306476082,-151.0,0.00040547,14]
[377247488,1754306476118,-6244.94641108,0.00040766,120]
[377247489,1754306476145,-214.21,0.000408,30]
[377247490,1754306476173,-504.0,0.00040809,10]
[377247491,1754306476200,-251.73810858,0.00040821,21]
[377247492,1754306476233,-151.0,0.00040821,14]
[377247493,1754306476259,-151.0,0.00040821,14]
[377247494,1754306476292,-151.0,0.00040821,14]
[377247495,1754306476320,-151.0,0.00040821,14]
[377247496,1754306476348,-151.0,0.00040821,14]
[377247497,1754306476375,-151.0,0.00040821,14]
[377247498,1754306476403,-151.0,0.00040821,14]
[377247499,1754306476429,-194.76452,0.00040821,14]
[377247500,1754306476457,-151.579175,0.00040821,14]
[377247501,1754306476487,-151.0,0.00040821,14]
[377247502,1754306476522,-200.0,0.0004088,20]
[377247503,1754306476548,-846.39,0.000409,14]
[377247504,1754306476575,-18824.47,0.000409,14]
[377247505,1754306476602,-2110.0,0.00040965,30]
[377247506,1754306476630,-50000.0,0.00041,41]
[377247507,1754306476656,-1500.0,0.00041,120]
[377247508,1754306476682,-151.0,0.00041,14]
[377247509,1754306476735,-200.0,0.00041096,20]
[377247510,1754306476761,-200.0,0.00041096,20]
[377247511,1754306476786,-200.0,0.00041096,20]
[377247512,1754306476814,-2000.0,0.00041107,10]
[377247513,1754306476841,-503.70761084,0.00041121,10]
[377247514,1754306476868,-600.0,0.00041127,14]
[377247515,1754306476895,-600.0,0.00041127,14]
[377247516,1754306476922,-600.0,0.00041127,14]
[377247517,1754306476948,-235.15,0.00041127,14]
[377247518,1754306476975,-391.0,0.0004114,30]
[377247519,1754306477003,-150.0,0.00041237,14]
[377247520,1754306477032,-1000.0,0.00041362,14]
[377247521,1754306477059,-737.42,0.00041368,120]
[377247522,1754306477095,-151.0,0.00041369,14]
[377247523,1754306477120,-151.0,0.00041369,14]
[377247524,1754306477147,-151.0,0.00041369,14]
[377247525,1754306477173,-151.0,0.00041369,14]
[377247526,1754306477452,-151.0,0.00041369,14]
[377247527,1754306477482,-151.0,0.00041369,14]
[377247528,1754306477510,-151.0,0.00041369,14]
[377247529,1754306477544,-150.0,0.00041407,14]
[377247530,1754306477571,-501.11194295,0.00041408,10]
[377247531,1754306477598,-2110.0,0.00041465,30]
[377247532,1754306477625,-1575.1,0.00041494,120]
[377247533,1754306477651,-157.84222232,0.00041543,15]
[377247534,1754306477677,-18824.47,0.000416,14]
[377247535,1754306477709,-737.42,0.00041642,120]
[377247536,1754306477760,-280.72584,0.00041643,14]
[377247537,1754306477794,-2519.35412072,0.00041655,10]
[377247538,1754306477821,-150.0,0.00041757,14]
[377247539,1754306477847,-214.21,0.000418,30]
[377247540,1754306477875,-504.0,0.00041875,10]
[377247541,1754306477901,-846.39,0.000419,14]
[377247542,1754306477929,-737.42,0.00041916,120]
[377247543,1754306477955,-178.33,0.00041916,120]
[377247544,1754306477994,-151.0,0.00041917,14]
[377247545,1754306478020,-151.0,0.00041917,14]
[377247546,1754306478047,-151.0,0.00041917,14]
[377247547,1754306478074,-151.0,0.00041917,14]
[377247548,1754306478101,-151.0,0.00041917,14]
[377247549,1754306478129,-151.0,0.00041917,14]
[377247550,1754306478164,-1000.0,0.00041945,14]
[377247551,1754306478191,-2110.0,0.00041965,30]
[377247552,1754306478223,-500.0,0.00041973,10]
[377247553,1754306478252,-50000.0,0.00042,42]
[377247554,1754306478289,-166.66666666,0.00042,30]
[377247555,1754306478320,-150.0,0.00042111,14]
[377247556,1754306478348,-150.0,0.00042181,14]
[377247557,1754306478383,-737.42,0.0004219,120]
[377247558,1754306478421,-151.0,0.00042191,14]
[377247559,1754306478448,-192.863762,0.00042191,14]
[377247560,1754306478499,-280.92281447,0.00042227,14]
[377247561,1754306478527,-150.0,0.0004226,14]
[377247562,1754306478554,-150.0,0.00042263,14]
[377247563,1754306478582,-150.0,0.00042265,14]
[377247564,1754306478610,-18824.47,0.000423,14]
[377247565,1754306478636,-150.0,0.00042309,14]
[377247566,1754306478668,-1000.0,0.00042311,14]
[377247567,1754306478696,-150.0,0.00042354,14]
[377247568,1754306478724,-157.8422223,0.00042365,16]
[377247569,1754306478752,-150.0,0.00042369,14]
[377247570,1754306478779,-150.0,0.0004238,14]
[377247571,1754306478808,-30000.0,0.00042416,30]
[377247572,1754306478837,-600.0,0.00042432,14]
[377247573,1754306478868,-600.0,0.00042432,14]
[377247574,1754306478897,-156.77,0.00042432,14]
[377247575,1754306478926,-356.0,0.00042434,120]
[377247576,1754306478952,-150.0,0.0004244,14]
[377247577,1754306478980,-356.0,0.00042444,120]
[377247578,1754306479007,-150.0,0.00042452,14]
[377247579,1754306479034,-356.0,0.00042454,120]
[377247580,1754306479066,-737.42,0.00042464,120]
[377247581,1754306479110,-500.0,0.00042465,120]
[377247582,1754306479137,-500.0,0.00042465,120]
[377247583,1754306479171,-500.0,0.00042465,120]
[377247584,1754306479200,-500.0,0.00042465,120]
[377247585,1754306479228,-500.0,0.00042465,120]
[377247586,1754306479257,-305.77,0.00042465,120]
[377247587,1754306479288,-6717.43959,0.00042465,14]
[377247588,1754306479315,-247.332141,0.00042465,14]
[377247589,1754306479344,-151.0,0.00042465,14]
[377247590,1754306479375,-151.0,0.00042465,14]
[377247591,1754306479402,-151.0,0.00042465,14]
[377247592,1754306479434,-151.0,0.00042465,14]
[377247593,1754306479463,-2110.0,0.00042465,30]
[377247594,1754306479491,-151.0,0.00042465,14]
[377247595,1754306479529,-186.13834337,0.00042487,15]
[377247596,1754306479557,-600.0,0.00042488,14]
[377247597,1754306479584,-600.0,0.00042488,14]
[377247598,1754306479611,-156.77,0.00042488,14]
[377247599,1754306479643,-2350.17622941,0.00042517,15]
[377247600,1754306479670,-171.2869618,0.00042521,10]
[377247601,1754306479700,-600.0,0.00042544,14]
[377247602,1754306479727,-600.0,0.00042544,14]
[377247603,1754306479755,-214.21,0.000426,30]
[377247604,1754306479782,-2350.17622941,0.00042639,15]
[377247605,1754306479809,-466.51,0.00042668,30]
[377247606,1754306479838,-846.39,0.000427,14]
[377247607,1754306479867,-299.99,0.00042707,120]
[377247608,1754306479893,-1716.36,0.00042707,30]
[377247609,1754306479921,-150.99,0.00042707,30]
[377247610,1754306479952,-737.42,0.00042738,120]
[377247611,1754306480000,-151.0,0.00042739,14]
[377247612,1754306480028,-151.0,0.00042739,14]
[377247613,1754306480055,-151.0,0.00042739,14]
[377247614,1754306480081,-151.0,0.00042739,14]
[377247615,1754306480515,-151.0,0.00042739,14]
[377247616,1754306480543,-151.0,0.00042739,14]
[377247617,1754306480585,-151.0,0.00042739,14]
[377247618,1754306480617,-277.257874,0.00042739,14]
[377247619,1754306480645,-248.750718,0.00042739,14]
[377247620,1754306480672,-151.0,0.00042739,14]
[377247621,1754306480710,-373.35,0.00042805,30]
[377247622,1754306480737,-150.0,0.00042805,30]
[377247623,1754306480765,-150.52,0.00042805,30]
[377247624,1754306480792,-150.0,0.00042805,30]
[377247625,1754306480819,-150.0,0.00042805,30]
[377247626,1754306480846,-359.0,0.00042805,30]
[377247627,1754306480872,-536.97,0.00042805,30]
[377247628,1754306480898,-345.96,0.00042805,30]
[377247629,1754306480926,-172.84,0.00042805,30]
[377247630,1754306480953,-435.38,0.00042806,30]
[377247631,1754306480980,-150.0,0.00042806,30]
[377247632,1754306481006,-150.0,0.00042806,30]
[377247633,1754306481040,-370.5,0.00042909,120]
[377247634,1754306481068,-186.13834337,0.00042913,15]
[377247635,1754306481098,-504.0,0.00042941,10]
[377247636,1754306481125,-2110.0,0.00042965,30]
[377247637,1754306481154,-50000.0,0.00043,43]
[377247638,1754306481184,-50000.0,0.00043,53]
[377247639,1754306481211,-1229480.16537364,0.00043,15]
[377247640,1754306481239,-151.0,0.00043,14]
[377247641,1754306481268,-151.0,0.00043,14]
[377247642,1754306481297,-237.756251,0.00043,14]
[377247643,1754306481324,-163.44987,0.00043,14]
[377247644,1754306481351,-18824.47,0.00043,14]
[377247645,1754306481379,-151.0,0.00043,14]
[377247646,1754306481406,-151.0,0.00043,14]
[377247647,1754306481436,-500.0,0.00043,10]
[377247648,1754306481468,-737.42,0.00043012,120]
[377247649,1754306481509,-151.0,0.00043013,14]
[377247650,1754306481537,-151.0,0.00043013,14]
[377247651,1754306481579,-151.0,0.00043013,14]
[377247652,1754306481620,-439.43,0.00043014,30]
[377247653,1754306481647,-150.0,0.00043073,10]
[377247654,1754306481675,-156.11,0.00043079,30]
[377247655,1754306481702,-150.43,0.00043079,30]
[377247656,1754306481729,-6845.73379214,0.00043183,120]
[377247657,1754306481759,-254.71234876,0.00043183,120]
[377247658,1754306481788,-157.8422223,0.00043187,17]
[377247659,1754306481816,-356.0,0.0004326,120]
[377247660,1754306481843,-356.0,0.0004327,120]
[377247661,1754306481873,-737.42,0.00043286,120]
[377247662,1754306481901,-178.33,0.00043286,120]
[377247663,1754306481940,-151.0,0.00043287,14]
[377247664,1754306481968,-151.0,0.00043287,14]
[377247665,1754306481994,-151.0,0.00043287,14]
[377247666,1754306482030,-151.0,0.00043287,14]
[377247667,1754306482067,-359.08,0.00043288,30]
[377247668,1754306482099,-547.23,0.00043288,30]
[377247669,1754306482126,-690.4,0.00043288,30]
[377247670,1754306482151,-300.73,0.00043288,30]
[377247671,1754306482178,-921.47,0.0004332,120]
[377247672,1754306482205,-370.5,0.00043341,120]
[377247673,1754306482231,-1575.1,0.00043394,120]
[377247674,1754306482258,-214.21,0.000434,30]
[377247675,1754306482285,-717.94,0.00043425,30]
[377247676,1754306482310,-2110.0,0.00043465,30]
[377247677,1754306482339,-846.39,0.000435,14]
[377247678,1754306482371,-737.42,0.0004356,120]
[377247679,1754306482412,-151.0,0.00043561,14]
[377247680,1754306482439,-151.0,0.00043561,14]
[377247681,1754306482483,-151.0,0.00043566,14]
[377247682,1754306482509,-151.0,0.00043566,14]
[377247683,1754306482534,-250.0,0.00043621,10]
[377247684,1754306482560,-150.0,0.00043627,30]
[377247685,1754306482584,-150.0,0.00043627,30]
[377247686,1754306482610,-150.0,0.00043627,30]
[377247687,1754306482638,-150.0,0.00043627,30]
[377247688,1754306482665,-150.0,0.00043627,30]
[377247689,1754306482691,-150.0,0.00043627,30]
[377247690,1754306482723,-150.0,0.00043627,30]
[377247691,1754306482750,-150.0,0.00043627,30]
[377247692,1754306482776,-150.0,0.00043627,30]
[377247693,1754306482803,-150.0,0.00043627,30]
[377247694,1754306482829,-150.0,0.00043627,30]
[377247695,1754306482854,-150.0,0.00043627,30]
[377247696,1754306482880,-150.0,0.00043627,30]
[377247697,1754306482905,-150.0,0.00043627,30]
[377247698,1754306482930,-150.0,0.00043627,30]
[377247699,1754306482955,-166.51,0.00043627,30]
[377247700,1754306482982,-466.93,0.00043628,30]
[377247701,1754306483008,-466.93,0.00043628,30]
[377247702,1754306483033,-466.57,0.00043628,30]
[377247703,1754306483059,-239.56,0.00043628,30]
[377247704,1754306483094,-150.0,0.00043628,30]
[377247705,1754306483121,-150.0,0.00043628,30]
[377247706,1754306483148,-150.0,0.00043628,30]
[377247707,1754306483502,-150.0,0.00043628,30]
[377247708,1754306483529,-150.0,0.00043628,30]
[377247709,1754306483558,-150.0,0.00043628,30]
[377247710,1754306483586,-165.39,0.00043628,30]
[377247711,1754306483613,-359.08,0.00043628,30]
[377247712,1754306483639,-150.0,0.00043628,30]
[377247713,1754306483665,-172.88,0.00043628,30]
[377247714,1754306483691,-537.09,0.00043628,30]
[377247715,1754306483723,-359.08,0.00043628,30]
[377247716,1754306483750,-150.0,0.00043628,30]
[377247717,1754306483777,-172.88,0.00043628,30]
[377247718,1754306483804,-165.39,0.00043628,30]
[377247719,1754306483831,-537.09,0.00043628,30]
[377247720,1754306483858,-537.09,0.00043628,30]
[377247721,1754306483884,-359.08,0.00043628,30]
[377247722,1754306483910,-150.0,0.00043628,30]
[377247723,1754306483936,-537.09,0.00043628,30]
[377247724,1754306483963,-172.88,0.00043628,30]
[377247725,1754306483992,-165.39,0.00043628,30]
[377247726,1754306484019,-537.09,0.00043628,30]
[377247727,1754306484048,-359.08,0.00043628,30]
[377247728,1754306484076,-150.0,0.00043628,30]
[377247729,1754306484102,-1073.34,0.00043628,30]
[377247730,1754306484128,-172.88,0.00043628,30]
[377247731,1754306484154,-165.39,0.00043628,30]
[377247732,1754306484182,-150.0,0.00043628,30]
[377247733,1754306484208,-359.08,0.00043628,30]
[377247734,1754306484237,-172.88,0.00043628,30]
[377247735,1754306484267,-165.39,0.00043628,30]
[377247736,1754306484295,-300.0,0.00043628,30]
[377247737,1754306484322,-359.08,0.00043628,30]
[377247738,1754306484347,-172.88,0.00043628,30]
[377247739,1754306484376,-165.39,0.00043628,30]
[377247740,1754306484403,-359.08,0.00043628,30]
[377247741,1754306484432,-172.88,0.00043628,30]
[377247742,1754306484459,-165.39,0.00043628,30]
[377247743,1754306484487,-359.08,0.00043628,30]
[377247744,1754306484513,-172.88,0.00043628,30]
[377247745,1754306484539,-172.88,0.00043628,30]
[377247746,1754306484566,-172.88,0.00043628,30]
[377247747,1754306484592,-165.11,0.00043628,30]
[377247748,1754306484618,-172.88,0.00043628,30]
[377247749,1754306484646,-172.88,0.00043628,30]
[377247750,1754306484672,-172.88,0.00043628,30]
[377247751,1754306484699,-150.0,0.00043644,30]
[377247752,1754306484726,-154.81,0.00043644,30]
[377247753,1754306484753,-167.5,0.00043644,30]
[377247754,1754306484780,-174.83,0.00043644,30]
[377247755,1754306484806,-172.88,0.00043644,30]
[377247756,1754306484833,-537.09,0.00043644,30]
[377247757,1754306484859,-165.39,0.00043644,30]
[377247758,1754306484884,-300.0,0.00043644,30]
[377247759,1754306484909,-150.0,0.00043644,30]
[377247760,1754306484936,-359.08,0.00043644,30]
[377247761,1754306484961,-170.75,0.00043644,30]
[377247762,1754306484987,-1653.34,0.00043695,30]
[377247763,1754306485013,-359.08,0.00043695,30]
[377247764,1754306485040,-731.93,0.00043695,30]
[377247765,1754306485066,-18824.47,0.000437,14]
[377247766,1754306485093,-1083.0,0.00043726,30]
[377247767,1754306485118,-208.0,0.0004373,30]
[377247768,1754306485143,-370.5,0.00043772,120]
[377247769,1754306485167,-305.39721356,0.00043799,120]
[377247770,1754306485191,-404.30966179,0.00043799,120]
[377247771,1754306485216,-320.78472812,0.000438,120]
[377247772,1754306485244,-737.42,0.00043834,120]
[377247773,1754306485275,-400.0,0.00043835,120]
[377247774,1754306485300,-714.27,0.00043835,120]
[377247775,1754306485325,-156.17073581,0.00043835,120]
[377247776,1754306485350,-293.63835899,0.00043835,120]
[377247777,1754306485376,-532.52,0.00043835,120]
[377247778,1754306485401,-403.11,0.00043835,120]
[377247779,1754306485426,-557.78,0.00043835,120]
[377247780,1754306485452,-437.18,0.00043835,120]
[377247781,1754306485477,-958.47,0.00043835,60]
[377247782,1754306485502,-1692.49,0.00043835,120]
[377247783,1754306485527,-802.2,0.00043835,120]
[377247784,1754306485553,-498.32,0.00043835,120]
[377247785,1754306485578,-577.79,0.00043835,120]
[377247786,1754306485602,-1741.31,0.00043835,120]
[377247787,1754306485631,-495.93,0.00043835,120]
[377247788,1754306485657,-3095.42,0.00043835,120]
[377247789,1754306485685,-1265.39,0.00043835,120]
[377247790,1754306485710,-1044.0,0.00043835,120]
[377247791,1754306485736,-599.54,0.00043835,120]
[377247792,1754306485760,-1097.82,0.00043835,120]
[377247793,1754306485789,-1518.17,0.00043835,120]
[377247794,1754306485815,-1614.51,0.00043835,120]
[377247795,1754306485841,-1128.88,0.00043835,120]
[377247796,1754306485865,-871.27,0.00043835,120]
[377247797,1754306485892,-16704.11,0.00043835,120]
[377247798,1754306485919,-2310.1,0.00043835,120]
[377247799,1754306485943,-571.02,0.00043835,120]
[377247800,1754306485968,-533.36,0.00043835,120]
[377247801,1754306486236,-1650.75,0.00043835,120]
[377247802,1754306486277,-703.22,0.00043835,120]
[377247803,1754306486303,-400.0,0.00043835,120]
[377247804,1754306486328,-477.37,0.00043835,120]
[377247805,1754306486353,-1078.73,0.00043835,120]
[377247806,1754306486378,-685.79,0.00043835,120]
[377247807,1754306486403,-752.2,0.00043835,120]
[377247808,1754306486430,-400.0,0.00043835,120]
[377247809,1754306486454,-895.69,0.00043835,120]
[377247810,1754306486479,-1553.38,0.00043835,120]
[377247811,1754306486503,-592.99,0.00043835,120]
[377247812,1754306486529,-875.45,0.00043835,120]
[377247813,1754306486555,-940.94,0.00043835,120]
[377247814,1754306486581,-1105.51,0.00043835,120]
[377247815,1754306486608,-1811.05,0.00043835,120]
[377247816,1754306486633,-526.38,0.00043835,120]
[377247817,1754306486660,-780.95,0.00043835,120]
[377247818,1754306486686,-597.35,0.00043835,120]
[377247819,1754306486712,-745.47,0.00043835,120]
[377247820,1754306486739,-657.75,0.00043835,120]
[377247821,1754306486765,-1408.22,0.00043835,120]
[377247822,1754306486799,-783.78,0.00043835,120]
[377247823,1754306486824,-572.56,0.00043835,120]
[377247824,1754306486850,-776.07,0.00043835,120]
[377247825,1754306486877,-504.92,0.00043835,120]
[377247826,1754306486903,-1176.6,0.00043835,120]
[377247827,1754306486929,-846.23,0.00043835,120]
[377247828,1754306486956,-924.68,0.00043835,120]
[377247829,1754306486984,-672.34,0.00043835,120]
[377247830,1754306487011,-1115.28,0.00043835,120]
[377247831,1754306487036,-412.4,0.00043835,120]
[377247832,1754306487064,-596.71,0.00043835,120]
[377247833,1754306487090,-427.49,0.00043835,120]
[377247834,1754306487115,-1597.56,0.00043835,120]
[377247835,1754306487141,-1068.33,0.00043835,120]
[377247836,1754306487168,-541.73,0.00043835,120]
[377247837,1754306487194,-1501.64,0.00043835,120]
[377247838,1754306487220,-771.35,0.00043835,120]
[377247839,1754306487246,-1301.38,0.00043835,120]
[377247840,1754306487272,-1867.48,0.00043835,120]
[377247841,1754306487298,-710.48,0.00043835,120]
[377247842,1754306487324,-1709.3,0.00043835,120]
[377247843,1754306487348,-593.29,0.00043835,120]
[377247844,1754306487375,-1910.28,0.00043835,120]
[377247845,1754306487400,-2102.43,0.00043835,120]
[377247846,1754306487426,-2235.93,0.00043835,120]
[377247847,1754306487453,-1155.31,0.00043835,120]
[377247848,1754306487477,-1750.01,0.00043835,120]
[377247849,1754306487502,-2153.68,0.00043835,120]
[377247850,1754306487526,-553.35,0.00043835,120]
[377247851,1754306487551,-595.21,0.00043835,120]
[377247852,1754306487587,-519.62,0.00043835,120]
[377247853,1754306487615,-791.44,0.00043835,120]
[377247854,1754306487642,-678.44,0.00043835,120]
[377247855,1754306487669,-400.0,0.00043835,120]
[377247856,1754306487696,-538.16719833,0.00043835,120]
[377247857,1754306487722,-586.89,0.00043835,120]
[377247858,1754306487750,-153.62445608,0.00043835,120]
[377247859,1754306487776,-769.85,0.00043835,120]
[377247860,1754306487803,-606.25,0.00043835,120]
[377247861,1754306487828,-1038.76,0.00043835,120]
[377247862,1754306487853,-1035.47,0.00043835,120]
[377247863,1754306487879,-622.46,0.00043835,120]
[377247864,1754306487906,-978.23,0.00043835,120]
[377247865,1754306487933,-1405.02,0.00043835,120]
[377247866,1754306487958,-637.0,0.00043835,120]
[377247867,1754306487984,-1073.87,0.00043835,120]
[377247868,1754306488010,-421.52,0.00043835,120]
[377247869,1754306488035,-688.25,0.00043835,120]
[377247870,1754306488059,-1367.73,0.00043835,120]
[377247871,1754306488089,-400.0,0.00043835,120]
[377247872,1754306488115,-1161.99,0.00043835,120]
[377247873,1754306488141,-414.46,0.00043835,120]
[377247874,1754306488175,-503.08,0.00043835,120]
[377247875,1754306488202,-1115.84,0.00043835,120]
[377247876,1754306488228,-780.0,0.00043835,120]
[377247877,1754306488255,-1011.9,0.00043835,120]
[377247878,1754306488281,-478.01,0.00043835,120]
[377247879,1754306488307,-764.15,0.00043835,120]
[377247880,1754306488332,-1004.29,0.00043835,120]
[377247881,1754306488358,-675.14,0.00043835,120]
[377247882,1754306488386,-1306.53,0.00043835,120]
[377247883,1754306488411,-1585.13,0.00043835,120]
[377247884,1754306488437,-542.26,0.00043835,120]
[377247885,1754306488465,-828.24,0.00043835,120]
[377247886,1754306488492,-722.44,0.00043835,120]
[377247887,1754306488518,-906.14,0.00043835,120]
[377247888,1754306488546,-993.97,0.00043835,120]
[377247889,1754306488574,-453.14,0.00043835,120]
[377247890,1754306488601,-1147.94,0.00043835,120]
[377247891,1754306488634,-477.07,0.00043835,120]
[377247892,1754306488661,-528.28,0.00043835,120]
[377247893,1754306488688,-624.91,0.00043835,120]
[377247894,1754306488715,-451.78,0.00043835,120]
[377247895,1754306488744,-846.48,0.00043835,120]
[377247896,1754306488773,-1652.63,0.00043835,120]
[377247897,1754306489241,-491.69,0.00043835,120]
[377247898,1754306489269,-969.07,0.00043835,120]
[377247899,1754306489294,-400.0,0.00043835,120]
[377247900,1754306489320,-707.13,0.00043835,120]
[377247901,1754306489345,-898.53,0.00043835,120]
[377247902,1754306489372,-950.76,0.00043835,60]
[377247903,1754306489398,-544.91,0.00043835,120]
[377247904,1754306489425,-755.23,0.00043835,120]
[377247905,1754306489451,-861.69,0.00043835,120]
[377247906,1754306489481,-646.8,0.00043835,120]
[377247907,1754306489508,-860.25,0.00043835,120]
[377247908,1754306489534,-787.94,0.00043835,120]
[377247909,1754306489561,-765.37,0.00043835,120]
[377247910,1754306489587,-561.99,0.00043835,120]
[377247911,1754306489612,-631.68,0.00043835,120]
[377247912,1754306489639,-558.58,0.00043835,120]
[377247913,1754306489666,-2018.7,0.00043835,120]
[377247914,1754306489692,-844.94,0.00043835,120]
[377247915,1754306489719,-1240.61,0.00043835,120]
[377247916,1754306489746,-708.25,0.00043835,120]
[377247917,1754306489774,-602.57,0.00043835,120]
[377247918,1754306489802,-2486.25,0.00043835,120]
[377247919,1754306489830,-1258.69,0.00043835,120]
[377247920,1754306489856,-841.37,0.00043835,120]
[377247921,1754306489881,-400.12,0.00043835,120]
[377247922,1754306489908,-544.2,0.00043835,120]
[377247923,1754306489933,-780.47,0.00043835,120]
[377247924,1754306489959,-771.24,0.00043835,120]
[377247925,1754306489984,-1105.39,0.00043835,120]
[377247926,1754306490009,-1192.46,0.00043835,120]
[377247927,1754306490035,-741.79,0.00043835,120]
[377247928,1754306490062,-976.72,0.00043835,120]
[377247929,1754306490101,-553.3649982,0.00043835,120]
[377247930,1754306502819,-1147.55464903,0.00024348,11]
[377247931,1754306502851,-1147.55464903,0.00025038,12]
[377247932,1754306502881,-1147.55464903,0.00025728,13]
[377247933,1754306502911,-1147.55464903,0.00026417,15]
[377247934,1754306502941,-1147.55464903,0.00027107,16]
[377247935,1754306502974,-1147.55464903,0.00027797,17]
[377247936,1754306503003,-1147.55464903,0.00028486,19]
[377247937,1754306503034,-1147.55464903,0.00029176,20]
[377247938,1754306503064,-1147.55464903,0.00029866,21]
[377247939,1754306503090,-553.661,0.00029968,24]
[377247940,1754306503121,-1147.55464903,0.00030555,23]
[377247941,1754306503151,-1147.55464903,0.00031245,24]
[377247942,1754306503176,-430.01,0.00031526,120]
[377247943,1754306503207,-1147.55464903,0.00031934,25]
[377247944,1754306503237,-1147.55464903,0.00032624,27]
[377247945,1754306503269,-1147.55464903,0.00033314,28]